fUST/lending_fUST_20251014
["ID","MTS","AMOUNT","RATE_DAILY","PERIOD"]
[391131439,1760382640490,-500.0,0.00022965,2]
[391131440,1760382640499,-863.0,0.00022965,2]
[391131441,1760382640508,-152.0,0.00022968,3]
[391131442,1760382640518,-162.0,0.00022968,3]
[391131443,1760382640527,-152.0,0.00022968,3]
[391131444,1760382640536,-152.0,0.00022968,3]
[391131445,1760382640545,-162.0,0.00022968,3]
[391131446,1760382640554,-152.0,0.00022968,3]
[391131447,1760382640563,-165.286418,0.00022968,3]
[391131448,1760382640572,-152.0,0.00022968,3]
[391131449,1760382640581,-162.0,0.00022968,3]
[391131450,1760382640591,-152.0,0.00022968,3]
[391131451,1760382640600,-330.0,0.00022968,3]
[391131452,1760382640608,-152.0,0.00022968,3]
[391131453,1760382640617,-330.0,0.00022968,3]
[391131454,1760382640628,-152.0,0.00022968,3]
[391131455,1760382640638,-330.0,0.00022968,3]
[391131456,1760382640647,-152.0,0.00022968,3]
[391131457,1760382640656,-330.0,0.00022968,3]
[391131458,1760382640666,-152.0,0.00022968,3]
[391131459,1760382640675,-330.0,0.00022968,3]
[391131460,1760382640684,-152.0,0.00022968,3]
[391131461,1760382640693,-330.0,0.00022968,3]
[391131462,1760382640702,-152.0,0.00022968,3]
[391131463,1760382640711,-330.0,0.00022968,3]
[391131464,1760382640720,-162.95094999,0.00022968,3]
[391131465,1760382640729,-152.0,0.00022968,3]
[391131466,1760382640738,-152.0,0.00022968,3]
[391131467,1760382640747,-152.0,0.00022968,3]
[391131468,1760382640756,-152.0,0.00022968,3]
[391131469,1760382640765,-152.0,0.00022968,3]
[391131470,1760382640774,-152.0,0.00022968,3]
[391131471,1760382640783,-152.0,0.00022968,3]
[391131472,1760382640791,-152.0,0.00022968,3]
[391131473,1760382640800,-152.0,0.00022968,3]
[391131474,1760382640809,-152.0,0.00022968,3]
[391131475,1760382640818,-152.0,0.00022968,3]
[391131476,1760382640827,-152.0,0.00022968,3]
[391131477,1760382640836,-152.0,0.00022968,3]
[391131478,1760382640845,-152.0,0.00022968,3]
[391131479,1760382640854,-152.0,0.00022968,3]
[391131480,1760382640863,-152.0,0.00022968,3]
[391131481,1760382640874,-152.0,0.00022968,3]
[391131482,1760382640885,-152.0,0.00022968,3]
[391131483,1760382640895,-152.0,0.00022968,3]
[391131484,1760382640906,-152.0,0.00022968,3]
[391131485,1760382640915,-152.0,0.00022968,3]
[391131486,1760382640925,-152.0,0.00022968,3]
[391131487,1760382640935,-152.0,0.00022968,3]
[391131488,1760382640945,-152.0,0.00022968,3]
[391131489,1760382640954,-152.0,0.00022968,3]
[391131490,1760382640963,-152.0,0.00022968,3]
[391131491,1760382640972,-152.0,0.00022968,3]
[391131492,1760382640981,-152.0,0.00022968,3]
[391131493,1760382640990,-152.0,0.00022968,3]
[391131494,1760382640999,-258.10495894,0.00022968,3]
[391131495,1760382641009,-152.0,0.00022968,3]
[391131496,1760382641018,-152.0,0.00022968,3]
[391131497,1760382641027,-162.0,0.00022968,3]
[391131498,1760382641036,-330.0,0.00022968,3]
[391131499,1760382641045,-330.0,0.00022968,3]
[391131500,1760382641055,-330.0,0.00022968,3]
[391131501,1760382641152,-155.0,0.00022969,2]
[391131502,1760382641164,-151.0,0.00022969,2]
[391131503,1760382641173,-253.03487343,0.00022969,2]
[391131504,1760382641183,-500.0,0.00022969,2]
[391131505,1760382641192,-500.0,0.00022969,2]
[391131506,1760382641202,-500.0,0.00022969,2]
[391131507,1760382641211,-151.0,0.00022969,2]
[391131508,1760382641220,-500.0,0.00022969,2]
[391131509,1760382641229,-500.0,0.00022969,2]
[391131510,1760382641239,-500.0,0.00022969,2]
[391131511,1760382641248,-500.0,0.00022969,2]
[391131512,1760382641257,-500.0,0.00022969,2]
[391131513,1760382641266,-151.0,0.00022969,2]
[391131514,1760382641275,-500.0,0.00022969,2]
[391131515,1760382641284,-151.0,0.00022969,2]
[391131516,1760382641294,-151.0,0.00022969,2]
[391131517,1760382641303,-151.0,0.00022969,2]
[391131518,1760382641312,-223.66035927,0.00022969,2]
[391131519,1760382641321,-500.0,0.00022969,2]
[391131520,1760382641331,-151.0,0.00022969,2]
[391131521,1760382641339,-500.0,0.00022969,2]
[391131522,1760382641348,-500.0,0.00022969,2]
[391131523,1760382641357,-500.0,0.00022969,2]
[391131524,1760382641366,-435.80792259,0.00022969,2]
[391131525,1760382641379,-500.0,0.00022969,2]
[391131526,1760382641388,-500.0,0.00022969,2]
[391131527,1760382641397,-500.0,0.00022969,2]
[391131528,1760382641406,-1011.79911769,0.00022969,2]
[391131529,1760382641415,-500.0,0.00022969,2]
[391131530,1760382641424,-500.0,0.00022969,2]
[391131531,1760382641433,-500.0,0.00022973,2]
[391131532,1760382641443,-500.0,0.00022973,2]
[391131533,1760382641452,-500.0,0.00022973,2]
[391131534,1760382641461,-580.707189,0.00022973,2]
[391131535,1760382641471,-500.0,0.00022973,2]
[391131536,1760382641481,-507.51654487,0.00022973,2]
[391131537,1760382641490,-500.85262433,0.00022973,2]
[391131538,1760382641500,-500.0,0.00022973,2]
[391131539,1760382641510,-500.0,0.00022973,2]
[391131540,1760382641519,-500.0,0.00022973,2]
[391131541,1760382641529,-637.08783327,0.00022973,2]
[391131542,1760382641538,-500.0,0.00022973,2]
[391131543,1760382641548,-500.0,0.00022973,2]
[391131544,1760382641558,-500.0,0.00022973,2]
[391131545,1760382641570,-500.0,0.00022973,2]
[391131546,1760382641579,-500.0,0.00022973,2]
[391131547,1760382641588,-165.31729474,0.00022973,2]
[391131548,1760382641597,-500.0,0.00022973,2]
[391131549,1760382641607,-461.9872432,0.00022986,2]
[391131550,1760382641617,-160.0,0.00023,2]
[391131551,1760382641630,-27452.4,0.00023,3]
[391131552,1760382641640,-500.0,0.0002302,2]
[391131553,1760382641650,-500.0,0.0002302,2]
[391131554,1760382641659,-500.0,0.0002302,2]
[391131555,1760382641669,-500.0,0.0002302,2]
[391131556,1760382641679,-863.0,0.0002302,2]
[391131557,1760382641688,-151.0,0.00023024,2]
[391131558,1760382641698,-500.0,0.00023024,2]
[391131559,1760382641708,-500.0,0.00023024,2]
[391131560,1760382641718,-500.0,0.00023024,2]
[391131561,1760382641728,-151.0,0.00023024,2]
[391131562,1760382641737,-612.84316296,0.00023024,2]
[391131563,1760382641747,-500.0,0.00023024,2]
[391131564,1760382641756,-500.0,0.00023024,2]
[391131565,1760382641766,-500.0,0.00023024,2]
[391131566,1760382641775,-500.0,0.00023024,2]
[391131567,1760382641784,-151.0,0.00023024,2]
[391131568,1760382641794,-500.0,0.00023024,2]
[391131569,1760382641803,-151.0,0.00023024,2]
[391131570,1760382641813,-151.0,0.00023024,2]
[391131571,1760382641822,-151.0,0.00023024,2]
[391131572,1760382641831,-500.0,0.00023024,2]
[391131573,1760382641840,-151.0,0.00023024,2]
[391131574,1760382641850,-600.14351479,0.00023024,2]
[391131575,1760382641859,-500.0,0.00023024,2]
[391131576,1760382641869,-500.0,0.00023024,2]
[391131577,1760382641883,-500.0,0.00023024,2]
[391131578,1760382641892,-500.0,0.00023024,2]
[391131579,1760382641902,-8908.53687974,0.00023029,2]
[391131580,1760382641910,-151.415844,0.00023029,7]
[391131581,1760382641919,-151.0,0.00023029,7]
[391131582,1760382641929,-505.68837505,0.00023073,2]
[391131583,1760382641938,-351.30479449,0.00023075,2]
[391131584,1760382641947,-500.0,0.00023075,2]
[391131585,1760382641956,-500.0,0.00023075,2]
[391131586,1760382641966,-500.0,0.00023075,2]
[391131587,1760382641975,-863.0,0.00023075,2]
[391131588,1760382641984,-151.0,0.00023079,2]
[391131589,1760382641993,-500.0,0.00023079,2]
[391131590,1760382642002,-500.0,0.00023079,2]
[391131591,1760382642012,-349.82968302,0.00023079,2]
[391131592,1760382642021,-151.0,0.00023079,2]
[391131593,1760382642031,-255.0,0.00023079,2]
[391131594,1760382642039,-500.0,0.00023079,2]
[391131595,1760382642049,-500.0,0.00023079,2]
[391131596,1760382642058,-500.0,0.00023079,2]
[391131597,1760382642067,-245.96559572,0.00023079,2]
[391131598,1760382642076,-500.0,0.00023079,2]
[391131599,1760382642086,-151.0,0.00023079,2]
[391131600,1760382642094,-151.0,0.00023079,2]
[391131601,1760382642104,-151.0,0.00023079,2]
[391131602,1760382642116,-500.0,0.00023079,2]
[391131603,1760382642127,-151.28590803,0.00023079,2]
[391131604,1760382642136,-208.92978356,0.00023079,2]
[391131605,1760382642145,-500.0,0.00023079,2]
[391131606,1760382642155,-520.22307764,0.00023079,2]
[391131607,1760382642164,-500.0,0.00023079,2]
[391131608,1760382642173,-500.0,0.00023129,2]
[391131609,1760382642182,-500.0,0.00023129,2]
[391131610,1760382642192,-500.0,0.00023129,2]
[391131611,1760382642201,-863.0,0.00023129,2]
[391131612,1760382642209,-151.0,0.00023133,7]
[391131613,1760382642218,-151.0,0.00023133,7]
[391131614,1760382642227,-298.94672503,0.00023133,7]
[391131615,1760382642236,-151.0,0.00023133,7]
[391131616,1760382642245,-151.0,0.00023133,7]
[391131617,1760382642254,-193.674807,0.00023133,7]
[391131618,1760382642263,-193.674807,0.00023133,7]
[391131619,1760382642272,-193.674807,0.00023133,7]
[391131620,1760382642281,-193.674807,0.00023133,7]
[391131621,1760382642291,-151.0,0.00023133,7]
[391131622,1760382642300,-151.0,0.00023133,7]
[391131623,1760382642310,-151.0,0.00023133,7]
[391131624,1760382642320,-151.0,0.00023133,7]
[391131625,1760382642329,-151.0,0.00023133,7]
[391131626,1760382642338,-151.0,0.00023133,7]
[391131627,1760382642347,-151.0,0.00023133,7]
[391131628,1760382642357,-151.0,0.00023133,2]
[391131629,1760382642366,-500.0,0.00023133,2]
[391131630,1760382642376,-500.0,0.00023133,2]
[391131631,1760382642385,-151.0,0.00023133,2]
[391131632,1760382642394,-168.81058277,0.00023133,2]
[391131633,1760382642403,-500.0,0.00023133,2]
[391131634,1760382642412,-500.0,0.00023133,2]
[391131635,1760382642421,-500.0,0.00023133,2]
[391131636,1760382642431,-152.16018862,0.00023133,2]
[391131637,1760382642441,-151.31478856,0.00023133,2]
[391131638,1760382642451,-151.0,0.00023133,2]
[391131639,1760382642463,-500.0,0.00023133,2]
[391131640,1760382642474,-304.46323974,0.00023133,2]
[391131641,1760382642483,-500.0,0.00023133,2]
[391131642,1760382642493,-500.0,0.00023139,2]
[391131643,1760382642502,-500.0,0.0002314,5]
[391131644,1760382642512,-932.61253552,0.00023148,2]
[391131645,1760382642521,-500.0,0.00023184,2]
[391131646,1760382642530,-500.0,0.00023184,2]
[391131647,1760382642540,-500.0,0.00023184,2]
[391131648,1760382642549,-863.0,0.00023184,2]
[391131649,1760382642559,-500.0,0.00023188,2]
[391131650,1760382642567,-500.0,0.00023188,2]
[391131651,1760382642577,-414.30080251,0.00023188,2]
[391131652,1760382642585,-500.0,0.00023188,2]
[391131653,1760382642595,-498.69597983,0.00023188,2]
[391131654,1760382642604,-294.80368943,0.00023188,2]
[391131655,1760382642613,-500.0,0.00023188,2]
[391131656,1760382642623,-500.0,0.00023188,2]
[391131657,1760382642632,-170.11948783,0.00023188,2]
[391131658,1760382642641,-500.0,0.00023188,2]
[391131659,1760382642650,-500.0,0.00023188,2]
[391131660,1760382642660,-264.5870173,0.00023188,2]
[391131661,1760382642669,-153.87189434,0.00023188,2]
[391131662,1760382642678,-500.0,0.00023188,2]
[391131663,1760382642688,-504.97946464,0.00023188,2]
[391131664,1760382642697,-151.0,0.000232,10]
[391131665,1760382642706,-500.0,0.00023239,2]
[391131666,1760382642716,-500.0,0.00023239,2]
[391131667,1760382642725,-220.49862049,0.00023239,2]
[391131668,1760382642734,-863.0,0.00023239,2]
[391131669,1760382642743,-258.15557007,0.00023243,2]
[391131670,1760382642752,-500.0,0.00023243,2]
[391131671,1760382642761,-510.34621809,0.00023243,2]
[391131672,1760382642770,-500.0,0.00023243,2]
[391131673,1760382642779,-608.76169963,0.00023243,2]
[391131674,1760382642788,-243.786794,0.00023243,7]
[391131675,1760382642797,-151.0,0.00023243,7]
[391131676,1760382642806,-243.786794,0.00023243,7]
[391131677,1760382642815,-151.0,0.00023243,7]
[391131678,1760382642824,-243.786794,0.00023243,7]
[391131679,1760382642833,-243.786794,0.00023243,7]
[391131680,1760382642841,-151.0,0.00023243,7]
[391131681,1760382642851,-151.0,0.00023243,7]
[391131682,1760382642860,-151.0,0.00023243,7]
[391131683,1760382642869,-151.0,0.00023243,7]
[391131685,1760382642880,-151.0,0.00023243,7]
[391131686,1760382642889,-151.0,0.00023243,7]
[391131688,1760382642898,-151.0,0.00023243,7]
[391131689,1760382642906,-151.0,0.00023243,7]
[391131690,1760382642915,-151.0,0.00023243,7]
[391131691,1760382642924,-151.0,0.00023243,7]
[391131692,1760382642933,-151.0,0.00023243,7]
[391131693,1760382642942,-500.0,0.00023287,2]
[391131694,1760382642951,-500.0,0.00023294,2]
[391131695,1760382642960,-500.0,0.00023294,2]
[391131696,1760382642970,-863.0,0.00023294,2]
[391131698,1760382642979,-296.40420351,0.00023298,2]
[391131700,1760382642988,-500.0,0.00023298,2]
[391131702,1760382642997,-295.60211816,0.00023349,2]
[391131703,1760382643006,-500.0,0.00023349,2]
[391131704,1760382643015,-863.0,0.00023349,2]
[391131705,1760382643024,-151.935661,0.00023351,7]
[391131706,1760382643033,-152.110809,0.00023351,7]
[391131707,1760382643043,-151.0,0.00023351,7]
[391131708,1760382643052,-18603.8837,0.00023351,2]
[391131709,1760382643061,-217.5615755,0.00023351,2]
[391131710,1760382643139,-32.4384245,0.00023351,2]
[391131711,1760382643148,-151.0,0.00023351,2]
[391131712,1760382643159,-104.32178158,0.00023351,2]
[391131713,1760382643170,-145.67821842,0.00023351,2]
[391131714,1760382643179,-250.0,0.00023351,2]
[391131715,1760382643190,-36.97038779,0.00023351,2]
[391131721,1760382643498,-502.31,0.00021146,2]
[391131722,1760382643507,-753.47,0.00022107,2]
[391131723,1760382643516,-1004.63,0.00023068,2]
[391131724,1760382643525,-213.02961221,0.00023351,2]
[391131725,1760382643534,-250.0,0.00023351,2]
[391131726,1760382643543,-250.0,0.00023351,2]
[391131727,1760382643552,-250.0,0.00023351,2]
[391131728,1760382643561,-250.0,0.00023351,2]
[391131729,1760382643571,-250.0,0.00023351,2]
[391131730,1760382643580,-151.0,0.00023351,2]
[391131731,1760382643589,-81.43940758,0.00023351,2]
[391131756,1760382720112,223.67,0.00020372,2]
[391131757,1760382800035,224.86,0.00020156,2]
[391131758,1760382815767,453.86465756,0.00020055,4]
[391131759,1760382815838,302.8185205,0.00020256,4]
[391131761,1760382879296,222.0,0.00020159,2]
[391131762,1760382959523,230.64,0.00020089,2]
[391131763,1760382970944,-281.45150855,0.00021046,2]
[391131765,1760382985924,281.45150855,0.00020972,2]
[391131766,1760383038576,224.12,0.00020073,2]
[391131767,1760383046721,-239.04905147,0.00021029,2]
[391131768,1760383100093,178.0,8.4e-07,2]
[391131769,1760383101156,178.0,8.4e-07,2]
[391131770,1760383118869,218.23,0.00020086,2]
[391131771,1760383151412,-436.45,0.00021042,2]
[391131772,1760383151433,-60.18777991,0.00021042,2]
[391131773,1760383172303,517.8,0.00020972,2]
[391131774,1760383204243,209.89,0.00020097,2]
[391131775,1760383211492,-89.81222009,0.00021042,2]
[391131776,1760383211514,-232.68777991,0.00021054,2]
[391131777,1760383242212,755.236324,0.00020954,2]
[391131778,1760383284993,204.26,0.00020084,2]
[391131779,1760383297319,166.431134,0.00020846,2]
[391131780,1760383299450,-276.72723227,0.0002104,2]
[391131781,1760383299475,-247.0320938,0.00021041,2]
[391131782,1760383303901,-160.0,0.00021041,2]
[391131783,1760383319407,1161.26312958,0.00020083,2]
[391131784,1760383365010,196.48,0.00020091,2]
[391131785,1760383420844,197.10794937,0.00020083,2]
[391131786,1760383422224,523.75932607,0.00020948,2]
[391131787,1760383445668,193.98,0.00020092,2]
[391131790,1760383470894,7290.0,0.0002,2]
[391131791,1760383489618,24816.4569385,0.00020908,2]
[391131792,1760383526235,191.51,0.00020084,2]
[391131797,1760383605336,189.07,0.00020102,2]
[391131798,1760383660928,-175.13267759,0.0002106,2]
[391131801,1760383685124,186.67,0.000201,2]
[391131804,1760383713250,559.97698036,0.00018,5]
[391131807,1760383719641,164.903444,0.0002,2]
[391131811,1760383766735,201.68,0.0002008,2]
[391131817,1760383780849,-403.36,0.00021036,2]
[391131818,1760383780871,-141.56939341,0.00021057,2]
[391131819,1760383810853,-8.43060659,0.00021057,2]
[391131820,1760383810876,-169.77968423,0.00021057,2]
[391131860,1760383832716,-30.22031577,0.00021057,2]
[391131861,1760383832726,-175.0,0.00021315,4]
[391131862,1760383832735,-172.5,0.00021657,2]
[391131863,1760383832744,-300.0,0.000218,2]
[391131864,1760383832754,-300.0,0.000218,2]
[391131866,1760383832763,-1625.40674497,0.00021876,2]
[391131875,1760383832859,-553.64872831,0.00021876,2]
[391131876,1760383832868,-294.35126669,0.00021886,2]
[391131877,1760383832879,-841.81967037,0.00021886,2]
[391131878,1760383832982,-2129.58117577,0.00021886,2]
[391131879,1760383832992,-177.67,0.00021962,2]
[391131880,1760383833001,-206.99031543,0.0002197,2]
[391131881,1760383833012,-93.00968457,0.0002197,2]
[391131882,1760383833021,-1140.39415872,0.0002197,2]
[391131883,1760383833032,-59.60584128,0.0002197,2]
[391131884,1760383833042,-300.0,0.00021971,2]
[391131885,1760383833052,-300.0,0.00021971,2]
[391131886,1760383833060,-300.0,0.00021971,2]
[391131887,1760383833070,-300.0,0.00021971,2]
[391131888,1760383833079,-47383.55995669,0.00021972,2]
[391131889,1760383833090,-488.12512397,0.00021972,2]
[391131890,1760383833172,-2128.31491934,0.00021972,2]
[391131891,1760383833181,-500.0,0.00021973,2]
[391131892,1760383833191,-500.0,0.00021973,2]
[391131893,1760383833200,-502.2173669,0.00021973,2]
[391131894,1760383833209,-502.26379303,0.00021973,2]
[391131895,1760383833218,-504.46619044,0.00021973,2]
[391131896,1760383833228,-500.0,0.00021973,2]
[391131897,1760383833237,-500.0,0.00021973,2]
[391131898,1760383833247,-500.0,0.00021973,2]
[391131899,1760383833256,-500.0,0.00021973,2]
[391131900,1760383833265,-214.32488794,0.00021973,2]
[391131901,1760383833275,-500.0,0.00021973,2]
[391131902,1760383833284,-501.84242892,0.00021973,2]
[391131903,1760383833293,-83.40415917,0.00021973,2]
[391132033,1760383838462,-416.59584083,0.00021973,2]
[391132034,1760383838471,-500.0,0.00021973,2]
[391132035,1760383838482,-231.61658909,0.00021973,2]
[391132037,1760383838518,-268.38341091,0.00021973,2]
[391132038,1760383838528,-500.0,0.00021973,2]
[391132039,1760383838538,-500.0,0.00021973,2]
[391132040,1760383838548,-500.0,0.00021973,2]
[391132041,1760383838557,-500.0,0.00021973,2]
[391132042,1760383838566,-500.0,0.00021973,2]
[391132043,1760383838575,-200.53797051,0.00021973,2]
[391132044,1760383838585,-500.0,0.00021973,2]
[391132045,1760383838594,-500.0,0.00021973,2]
[391132046,1760383838603,-500.0,0.00021973,2]
[391132047,1760383838612,-500.0,0.00021973,2]
[391132048,1760383838621,-170.40948365,0.00021974,2]
[391132049,1760383838631,-151.0,0.00021974,2]
[391132050,1760383838640,-151.0,0.00021974,2]
[391132051,1760383838650,-171.91385009,0.00021974,2]
[391132052,1760383838659,-156.587,0.00021974,2]
[391132053,1760383838668,-322.21,0.00021975,3]
[391132054,1760383838677,-2404.66,0.00021976,3]
[391132055,1760383838687,-1288.84,0.00021976,3]
[391132056,1760383838696,-500.0,0.00021979,2]
[391132057,1760383838706,-500.0,0.00021979,2]
[391132058,1760383838715,-500.0,0.00021979,2]
[391132059,1760383838724,-500.0,0.00021979,2]
[391132060,1760383838734,-500.0,0.00021979,2]
[391132061,1760383838743,-500.0,0.00021979,2]
[391132062,1760383838753,-500.0,0.00021979,2]
[391132063,1760383838762,-500.0,0.00021979,2]
[391132064,1760383838771,-500.0,0.00021979,2]
[391132065,1760383838781,-438.72817383,0.00021979,2]
[391132066,1760383838791,-500.0,0.00021979,2]
[391132067,1760383838801,-500.0,0.00021979,2]
[391132068,1760383838810,-500.0,0.00021979,2]
[391132069,1760383838820,-500.0,0.00021979,2]
[391132070,1760383838829,-500.0,0.00021979,2]
[391132071,1760383838840,-500.0,0.00021979,2]
[391132072,1760383838850,-500.0,0.00021979,2]
[391132073,1760383838860,-500.0,0.00021979,2]
[391132074,1760383838869,-500.0,0.00021979,2]
[391132075,1760383838879,-500.0,0.00021979,2]
[391132076,1760383838889,-500.0,0.00021979,2]
[391132077,1760383838900,-500.0,0.00021979,2]
[391132078,1760383838910,-500.0,0.00021979,2]
[391132079,1760383838919,-599.8981449,0.00021979,2]
[391132080,1760383838928,-500.0,0.00021979,2]
[391132081,1760383838938,-484.131006,0.00021979,2]
[391132082,1760383838947,-500.0,0.00021979,2]
[391132083,1760383838957,-485.69388757,0.00021979,2]
[391132084,1760383838968,-500.0,0.00021979,2]
[391132085,1760383838977,-500.0,0.00021979,2]
[391132086,1760383838987,-500.0,0.00021979,2]
[391132087,1760383838996,-500.0,0.00021979,2]
[391132088,1760383839005,-506.67557233,0.00021979,2]
[391132089,1760383839015,-500.0,0.00021979,2]
[391132090,1760383839024,-500.0,0.00021979,2]
[391132091,1760383839033,-500.0,0.00021979,2]
[391132092,1760383839043,-500.0,0.00021979,2]
[391132093,1760383839052,-500.0,0.00021979,2]
[391132094,1760383839062,-500.0,0.00021979,2]
[391132095,1760383839071,-500.0,0.00021979,2]
[391132096,1760383839080,-500.0,0.00021979,2]
[391132097,1760383839088,-500.0,0.00021979,2]
[391132098,1760383839098,-500.0,0.00021979,2]
[391132099,1760383839107,-500.0,0.00021979,2]
[391132100,1760383839116,-500.0,0.00021979,2]
[391132101,1760383839125,-500.0,0.00021979,2]
[391132102,1760383839134,-500.0,0.00021979,2]
[391132103,1760383839143,-500.0,0.00021979,2]
[391132104,1760383839153,-500.0,0.00021979,2]
[391132105,1760383839163,-500.0,0.00021979,2]
[391132106,1760383839172,-500.0,0.00021979,2]
[391132107,1760383839181,-500.0,0.00021979,2]
[391132108,1760383839191,-500.0,0.00021979,2]
[391132109,1760383839199,-611.26013961,0.00021979,2]
[391132110,1760383839209,-500.0,0.00021979,2]
[391132111,1760383839219,-500.0,0.00021979,2]
[391132112,1760383839228,-500.0,0.00021979,2]
[391132113,1760383839237,-500.0,0.00021979,2]
[391132114,1760383839246,-500.0,0.00021979,2]
[391132115,1760383839255,-500.0,0.00021979,2]
[391132116,1760383839265,-500.0,0.00021979,2]
[391132117,1760383839275,-500.0,0.00021979,2]
[391132118,1760383839284,-500.0,0.00021979,2]
[391132119,1760383839293,-500.0,0.00021979,2]
[391132120,1760383839302,-500.0,0.00021979,2]
[391132121,1760383839311,-500.0,0.00021979,2]
[391132122,1760383839320,-500.0,0.00021979,2]
[391132123,1760383839329,-500.0,0.00021979,2]
[391132124,1760383839338,-500.0,0.00021979,2]
[391132125,1760383839347,-500.0,0.00021979,2]
[391132126,1760383839357,-500.0,0.00021979,2]
[391132127,1760383839366,-500.0,0.00021979,2]
[391132128,1760383839375,-500.0,0.00021979,2]
[391132129,1760383839384,-500.0,0.00021979,2]
[391132130,1760383839394,-650.0,0.00021979,2]
[391132131,1760383839404,-500.0,0.00021979,2]
[391132132,1760383839422,-500.0,0.00021979,2]
[391132133,1760383839432,-500.0,0.00021979,2]
[391132134,1760383839441,-500.0,0.00021979,2]
[391132135,1760383839451,-500.0,0.00021979,2]
[391132136,1760383839460,-500.0,0.00021979,2]
[391132137,1760383839471,-500.0,0.00021979,2]
[391132138,1760383839482,-500.0,0.00021979,2]
[391132139,1760383839495,-500.0,0.00021979,2]
[391132140,1760383839505,-500.0,0.00021979,2]
[391132141,1760383839515,-500.0,0.00021979,2]
[391132142,1760383839526,-500.0,0.00021979,2]
[391132143,1760383839535,-500.0,0.00021979,2]
[391132144,1760383839546,-500.0,0.00021979,2]
[391132145,1760383839557,-500.0,0.00021979,2]
[391132146,1760383839567,-500.0,0.00021979,2]
[391132147,1760383839577,-500.0,0.00021979,2]
[391132148,1760383839586,-500.0,0.00021979,2]
[391132149,1760383839595,-500.0,0.00021979,2]
[391132150,1760383839605,-500.0,0.00021979,2]
[391132151,1760383839615,-500.0,0.00021979,2]
[391132152,1760383839625,-500.0,0.00021979,2]
[391132153,1760383839634,-500.0,0.00021979,2]
[391132154,1760383839643,-500.0,0.00021979,2]
[391132155,1760383839653,-500.0,0.00021979,2]
[391132156,1760383839662,-384.48057465,0.00021979,2]
[391132157,1760383839671,-500.0,0.00021979,2]
[391132158,1760383839683,-500.0,0.00021979,2]
[391132159,1760383839691,-500.0,0.00021979,2]
[391132160,1760383839700,-500.0,0.00021979,2]
[391132161,1760383839711,-500.0,0.00021979,2]
[391132162,1760383839722,-500.0,0.00021979,2]
[391132163,1760383839731,-500.0,0.00021979,2]
[391132164,1760383839740,-500.0,0.00021979,2]
[391132165,1760383839748,-500.0,0.00021979,2]
[391132166,1760383839757,-500.0,0.00021979,2]
[391132167,1760383839767,-500.0,0.00021979,2]
[391132168,1760383839776,-500.0,0.00021979,2]
[391132169,1760383839785,-500.0,0.00021979,2]
[391132170,1760383839794,-500.0,0.00021979,2]
[391132171,1760383839803,-248.21087776,0.00021979,2]
[391132172,1760383839812,-644.42,0.0002198,3]